fUSD/lending_fUSD_20240516
["ID","MTS","AMOUNT","RATE_DAILY","PERIOD"]
[327152461,1715859040942,-384.42,0.00011067,2]
[327152462,1715859040953,-20000.0,0.00011067,2]
[327152463,1715859040963,-74678.25849597,0.00011068,2]
[327152464,1715859041019,-347.14255937,0.00011068,2]
[327152465,1715859041035,-986.64854458,0.00011068,2]
[327152466,1715859041047,-1311.15236172,0.00011068,2]
[327152467,1715859041060,-16026.6777952,0.00011068,2]
[327152468,1715859041076,-24590.91387308,0.00011068,2]
[327152485,1715859043070,-3319.50548674,0.00011068,2]
[327152486,1715859043300,-500.0,0.00011067,2]
[327152487,1715859043311,-1732.61261377,0.00011068,2]
[327152521,1715859047598,-332.55378153,0.00010041,2]
[327152533,1715859252146,151.03,8.219e-05,2]
[327152539,1715859593755,-722.01,9.512e-05,2]
[327152542,1715859704643,-627.99,9.491e-05,2]
[327152547,1715859934645,151.03,8.219e-05,2]
[327152578,1715860231989,-155.0,9.247e-05,2]
[327152579,1715860231999,-262.98011562,9.248e-05,2]
[327152580,1715860232008,-656.52331219,9.249e-05,2]
[327152581,1715860232021,-1320.12980124,9.249e-05,2]
[327152582,1715860232049,-541.06137626,9.249e-05,2]
[327152583,1715860232113,-509.4573348,9.249e-05,2]
[327152584,1715860232123,-1205.19634876,9.25e-05,2]
[327152585,1715860232133,-3088.88127463,9.25e-05,2]
[327152586,1715860232142,-35350.68361235,9.251e-05,2]
[327152587,1715860232152,-150.0,9.26e-05,2]
[327152588,1715860232161,-3153.91,9.262e-05,2]
[327152589,1715860232171,-23880.0,9.269e-05,2]
[327152590,1715860232181,-300.0,9.282e-05,2]
[327152591,1715860232191,-1074.8,9.319e-05,2]
[327152592,1715860232200,-250.0,9.319e-05,2]
[327152593,1715860232209,-870.9,9.411e-05,2]
[327152594,1715860232219,-800.0,9.438e-05,2]
[327152595,1715860232229,-250.0,9.443e-05,2]
[327152597,1715860232242,-3718.25,9.491e-05,2]
[327152599,1715860232252,-352.51,9.67e-05,2]
[327152601,1715860232260,-999.99,9.67e-05,2]
[327152603,1715860232269,-499.99,9.67e-05,2]
[327152605,1715860232279,-165.24,9.743e-05,2]
[327152606,1715860232288,-4426.98574569,9.765e-05,2]
[327152608,1715860232298,-10019.6839,9.771e-05,2]
[327152610,1715860232307,-200.0,9.845e-05,2]
[327152613,1715860232316,-7412.49806283,0.0001,2]
[327152614,1715860232326,-409.50716018,0.0001,2]
[327152617,1715860232336,-316.00547258,0.00010039,2]
[327152618,1715860232345,-3089.57,0.00010039,2]
[327152621,1715860232355,-298.78407833,0.00010041,2]
[327152622,1715860232364,-210.0,0.00010186,2]
[327152625,1715860232374,-800.0,0.00010618,2]
[327152627,1715860232390,-6822.0811,0.0001086,2]
[327152629,1715860232400,-2721.9542,0.00010868,2]
[327152631,1715860232410,-2500.0,0.00010868,2]
[327152633,1715860232419,-286.89085874,0.00010923,2]
[327152635,1715860232430,-1563.60941232,0.00010928,2]
[327152637,1715860232440,-150.0,0.00010949,2]
[327152639,1715860232449,-10000.0,0.00010959,2]
[327152641,1715860232459,-4845.38,0.00010959,2]
[327152643,1715860232468,-70772.35753464,0.0001096,2]
[327152645,1715860232478,-165.24,0.00010961,2]
[327152647,1715860232489,-154.83,0.00010965,2]
[327152649,1715860232498,-279.01863078,0.00010967,2]
[327152651,1715860232507,-21964.1174,0.00010968,2]
[327152653,1715860232517,-500.0,0.00010968,2]
[327152655,1715860232526,-1294.0433,0.00010968,2]
[327152657,1715860232535,-1000.0,0.00010968,2]
[327152658,1715860232544,-150.0,0.00010974,2]
[327152686,1715860232779,-500.0,0.00010974,2]
[327152688,1715860232790,-500.0,0.00010974,2]
[327152690,1715860232799,-500.0,0.00010974,2]
[327152692,1715860232809,-500.0,0.00010974,2]
[327152693,1715860232818,-500.0,0.00010974,2]
[327152696,1715860232827,-500.0,0.00010974,2]
[327152697,1715860232836,-500.0,0.00010974,2]
[327152699,1715860232845,-500.0,0.00010974,2]
[327152702,1715860232855,-500.0,0.00010974,2]
[327152704,1715860232865,-500.0,0.00010974,2]
[327152706,1715860232874,-416.65121211,0.00010974,2]
[327152707,1715860232883,-500.0,0.00010974,2]
[327152710,1715860232892,-500.0,0.00010974,2]
[327152712,1715860232902,-500.0,0.00010974,2]
[327152714,1715860232911,-500.0,0.00010974,2]
[327152716,1715860232920,-500.0,0.00010974,2]
[327152718,1715860232929,-500.0,0.00010974,2]
[327152719,1715860232940,-500.0,0.00010974,2]
[327152722,1715860232949,-500.0,0.00010974,2]
[327152723,1715860232958,-643.63560616,0.00010974,2]
[327152725,1715860232967,-350.54825,0.00010974,2]
[327152728,1715860232977,-500.0,0.00010974,2]
[327152729,1715860232987,-172.22141549,0.00010975,2]
[327152731,1715860232997,-18299.00507776,0.00010975,2]
[327152734,1715860233007,-1000.0,0.00010979,2]
[327152736,1715860233017,-643.43768006,0.0001098,2]
[327152738,1715860233027,-1000.0,0.0001099,2]
[327152740,1715860233036,-200.0,0.0001099,2]
[327152742,1715860233045,-1000.0,0.00010991,2]
[327152744,1715860233055,-500.0,0.00010991,2]
[327152746,1715860233063,-150.0,0.00010997,2]
[327152748,1715860233073,-401.82384574,0.00010999,2]
[327152750,1715860233082,-500.0,0.00010999,2]
[327152751,1715860233091,-500.0,0.00010999,2]
[327152753,1715860233100,-208.12578491,0.00010999,2]
[327152755,1715860233108,-500.0,0.00010999,2]
[327152757,1715860233117,-500.0,0.00010999,2]
[327152759,1715860233126,-500.0,0.00010999,2]
[327152761,1715860233135,-500.0,0.00010999,2]
[327152763,1715860233144,-500.0,0.00010999,2]
[327152764,1715860233152,-500.0,0.00010999,2]
[327152765,1715860233161,-500.0,0.00010999,2]
[327152766,1715860233171,-500.0,0.00010999,2]
[327152767,1715860233179,-500.0,0.00010999,2]
[327152768,1715860233189,-500.0,0.00010999,2]
[327152769,1715860233198,-204.57451448,0.00010999,2]
[327152770,1715860233207,-408.19817109,0.00010999,2]
[327152771,1715860233217,-500.0,0.00010999,2]
[327152772,1715860233226,-500.0,0.00010999,2]
[327152773,1715860233237,-31525.48624496,0.00011,2]
[327152774,1715860233246,-25482.09951058,0.00011,10]
[327152775,1715860233256,-155.93142264,0.00011,2]
[327152776,1715860233265,-745.43664057,0.00011,2]
[327152777,1715860233273,-150.0,0.00011002,2]
[327152778,1715860233283,-1000.0,0.00011025,2]
[327152779,1715860233293,-1079.1402,0.00011025,2]
[327152780,1715860233303,-150.0,0.00011035,2]
[327152781,1715860233312,-99145.48321758,0.0001105,2]
[327152782,1715860233321,-154.83,0.00011056,2]
[327152783,1715860233331,-3750.04353913,0.00011064,2]
[327152784,1715860233355,-6462.85134193,0.00011064,2]
[327152785,1715860233366,-443.7326138,0.00011064,2]
[327152793,1715860237892,-540.68765903,9.246e-05,2]
[327152794,1715860237902,-784.77234097,0.00011064,2]
[327152795,1715860238008,-7500.45083114,0.00011064,2]
[327152796,1715860238020,-179767.09384945,0.00011064,2]
[327152797,1715860238030,-500.0,0.00011065,2]
[327152798,1715860238039,-500.0,0.00011065,2]
[327152799,1715860238049,-190.57,0.00011065,2]
[327152800,1715860238058,-500.0,0.00011065,2]
[327152801,1715860238068,-500.0,0.00011065,2]
[327152802,1715860238078,-500.0,0.00011065,2]
[327152803,1715860238087,-500.0,0.00011065,2]
[327152804,1715860238096,-500.0,0.00011065,2]
[327152805,1715860238106,-174.76,0.00011065,2]
[327152806,1715860238115,-500.0,0.00011065,2]
[327152807,1715860238124,-150.0,0.00011065,2]
[327152808,1715860238134,-204.84,0.00011065,2]
[327152809,1715860238143,-500.0,0.00011065,2]
[327152810,1715860238152,-505.53891602,0.00011065,2]
[327152811,1715860238161,-584.15909771,0.00011065,2]
[327152812,1715860238171,-500.0,0.00011065,2]
[327152813,1715860238180,-500.0,0.00011065,2]
[327152814,1715860238189,-500.0,0.00011065,2]
[327152815,1715860238199,-191.85,0.00011065,2]
[327152816,1715860238208,-328.38,0.00011065,2]
[327152817,1715860238217,-284.0751755,0.00011065,2]
[327152818,1715860238227,-500.0,0.00011065,2]
[327152819,1715860238236,-507.53817414,0.00011065,2]
[327152820,1715860238247,-500.0,0.00011065,2]
[327152821,1715860238256,-500.0,0.00011065,2]
[327152822,1715860238266,-540.20283223,0.00011065,2]
[327152823,1715860238276,-518.06200143,0.00011065,2]
[327152824,1715860238289,-604.49,0.00011065,2]
[327152825,1715860238299,-500.0,0.00011065,2]
[327152826,1715860238309,-500.0,0.00011065,2]
[327152827,1715860238318,-500.0,0.00011065,2]
[327152828,1715860238328,-500.0,0.00011065,2]
[327152829,1715860238337,-500.0,0.00011065,2]
[327152830,1715860238347,-500.0,0.00011065,2]
[327152831,1715860238356,-500.0,0.00011065,2]
[327152832,1715860238366,-500.0,0.00011065,2]
[327152833,1715860238375,-500.0,0.00011065,2]
[327152834,1715860238389,-500.0,0.00011065,2]
[327152835,1715860238398,-500.0,0.00011065,2]
[327152836,1715860238408,-500.0,0.00011065,2]
[327152837,1715860238418,-500.0,0.00011065,2]
[327152838,1715860238428,-500.0,0.00011065,2]
[327152839,1715860238438,-617.92,0.00011065,2]
[327152840,1715860238447,-1800.95,0.00011065,2]
[327152841,1715860238457,-500.0,0.00011065,2]
[327152842,1715860238470,-500.0,0.00011065,2]
[327152843,1715860238480,-500.0,0.00011065,2]
[327152844,1715860238500,-402.05292807,0.00011065,2]
[327152845,1715860238514,-625.95,0.00011065,2]
[327152846,1715860238527,-500.0,0.00011065,2]
[327152847,1715860238540,-500.0,0.00011065,2]
[327152848,1715860238553,-520.83,0.00011065,2]
[327152850,1715860238566,-326.6,0.00011065,2]
[327152852,1715860238577,-1067.47,0.00011065,2]
[327152854,1715860238588,-500.0,0.00011065,2]
[327152856,1715860238600,-249.08,0.00011065,2]
[327152859,1715860238612,-187.96,0.00011065,2]
[327152861,1715860238623,-500.0,0.00011065,2]
[327152862,1715860238636,-500.0,0.00011065,2]
[327152863,1715860238648,-500.0,0.00011065,2]
[327152864,1715860238661,-500.0,0.00011065,2]
[327152865,1715860238673,-500.0,0.00011065,2]
[327152866,1715860238685,-500.0,0.00011065,2]
[327152867,1715860238698,-500.0,0.00011065,2]
[327152868,1715860238709,-803.4,0.00011065,2]
[327152869,1715860238723,-500.0,0.00011065,2]
[327152870,1715860238737,-500.0,0.00011065,2]
[327152871,1715860238749,-500.0,0.00011065,2]
[327152872,1715860238762,-435.8504196,0.00011065,2]
[327152873,1715860238774,-500.0,0.00011065,2]
[327152874,1715860238786,-500.0,0.00011065,2]
[327152875,1715860238798,-500.0,0.00011065,2]
[327152876,1715860238810,-500.0,0.00011065,2]
[327152877,1715860238823,-315.7829701,0.00011065,2]
[327152878,1715860238835,-500.0,0.00011065,2]
[327152879,1715860238846,-500.0,0.00011065,2]
[327152880,1715860238859,-500.0,0.00011065,2]
[327152881,1715860238872,-500.0,0.00011065,2]
[327152882,1715860238884,-500.94781869,0.00011065,2]
[327152883,1715860238897,-500.0,0.00011065,2]
[327152884,1715860238908,-500.0,0.00011065,2]
[327152885,1715860238919,-500.0,0.00011065,2]
[327152886,1715860238930,-755.14,0.00011065,2]
[327152887,1715860238941,-500.0,0.00011065,2]
[327152888,1715860238953,-1187.47,0.00011065,2]
[327152889,1715860238964,-421.45832382,0.00011066,2]
[327152890,1715860238976,-155.13360489,0.00011066,2]
[327152891,1715860238987,-726.23771159,0.00011066,2]
[327152892,1715860238999,-3282.80859403,0.00011066,2]
[327152893,1715860239011,-155.0,0.00011066,2]
[327152894,1715860239022,-522.95913528,0.00011066,2]
[327152895,1715860239034,-155.0,0.00011066,2]
[327152896,1715860239046,-155.39198269,0.00011066,2]
[327152897,1715860239058,-2184.52280122,0.00011066,2]
[327152898,1715860239072,-155.0,0.00011066,2]
[327152899,1715860239085,-168.44065273,0.00011066,2]
[327152900,1715860239097,-237.10219524,0.00011066,2]
[327152901,1715860239109,-321.34456172,0.00011066,2]
[327152902,1715860239120,-546.67301368,0.00011066,2]
[327152903,1715860239130,-265.94745897,0.00011066,2]
[327152904,1715860239141,-268.42254375,0.00011066,2]
[327152905,1715860239152,-162.34639192,0.00011066,2]
[327152906,1715860239162,-158.26245048,0.00011066,2]
[327152907,1715860239178,-1063.06077755,0.00011066,2]
[327152908,1715860239190,-167.81288797,0.00011066,2]
[327152909,1715860239202,-6408.49246702,0.00011066,2]
[327152910,1715860239213,-377.72952639,0.00011066,2]
[327152911,1715860239226,-210.66059679,0.00011066,2]
[327152912,1715860239239,-5558.95156203,0.00011066,2]
[327152913,1715860239249,-316.44060217,0.00011066,2]
[327152914,1715860239261,-199.877,0.00011066,2]
[327152915,1715860239272,-500.0,0.00011066,2]
[327152916,1715860239284,-577.86961775,0.00011066,2]
[327152917,1715860239299,-500.0,0.00011066,2]
[327152918,1715860239311,-500.0,0.00011066,2]
[327152919,1715860239322,-500.0,0.00011066,2]
[327152920,1715860239333,-500.0,0.00011066,2]
[327152921,1715860239344,-527.61974846,0.00011066,2]
[327152922,1715860239354,-530.44676741,0.00011066,2]
[327152923,1715860239365,-500.0,0.00011066,2]
[327152924,1715860239377,-500.0,0.00011066,2]
[327152925,1715860239392,-532.88209216,0.00011066,2]
[327152926,1715860239403,-500.0,0.00011066,2]
[327152927,1715860239418,-500.0,0.00011066,2]
[327152928,1715860239431,-883.0724361,0.00011066,2]
[327152929,1715860239443,-500.0,0.00011067,2]
[327152930,1715860239454,-539.95659499,0.00011067,2]
[327152931,1715860239475,-500.0,0.00011067,2]
[327152932,1715860239486,-506.36112904,0.00011067,2]
[327152933,1715860239498,-504.4899487,0.00011067,2]
[327152934,1715860239510,-507.57090531,0.00011067,2]
[327152935,1715860239521,-500.0,0.00011067,2]
[327152936,1715860239534,-500.0,0.00011067,2]
[327152937,1715860239545,-500.0,0.00011067,2]
[327152938,1715860239557,-500.0,0.00011067,2]
[327152939,1715860239568,-500.0,0.00011067,2]
[327152940,1715860239580,-501.99900894,0.00011067,2]
[327152941,1715860239592,-500.0,0.00011067,2]
[327152942,1715860239603,-526.33997987,0.00011067,2]
[327152943,1715860239614,-500.0,0.00011067,2]
[327152944,1715860239626,-500.0,0.00011067,2]
[327152945,1715860239637,-500.0,0.00011067,2]
[327152947,1715860239648,-500.0,0.00011067,2]
[327152948,1715860239659,-500.0,0.00011067,2]
[327152949,1715860239670,-500.0,0.00011067,2]
[327152950,1715860239681,-500.0,0.00011067,2]
[327152951,1715860239692,-500.0,0.00011067,2]
[327152952,1715860239703,-500.0,0.00011067,2]
[327152953,1715860239714,-500.0,0.00011067,2]
[327152954,1715860239725,-500.0,0.00011067,2]
[327152955,1715860239735,-500.0,0.00011067,2]
[327152956,1715860239747,-500.0,0.00011067,2]
[327152957,1715860239757,-505.29169157,0.00011067,2]
[327152958,1715860239769,-500.0,0.00011067,2]
[327152959,1715860239780,-500.0,0.00011067,2]
[327152960,1715860239791,-500.0,0.00011067,2]
[327152961,1715860239803,-500.0,0.00011067,2]
[327152962,1715860239815,-500.0,0.00011067,2]
[327152963,1715860239826,-500.0,0.00011067,2]
[327152964,1715860239838,-500.0,0.00011067,2]
[327152965,1715860239849,-500.0,0.00011067,2]
[327152966,1715860239860,-500.0,0.00011067,2]
[327152967,1715860239873,-500.0,0.00011067,2]
[327152970,1715860239884,-603.72137145,0.00011067,2]
[327152972,1715860239896,-500.0,0.00011067,2]
[327152973,1715860239907,-573.41962599,0.00011067,2]
[327152974,1715860239918,-500.0,0.00011067,2]
[327152975,1715860239929,-500.0,0.00011067,2]
[327152976,1715860239940,-500.0,0.00011067,2]
[327152977,1715860239951,-500.0,0.00011067,2]
[327152978,1715860239962,-500.0,0.00011067,2]
[327152979,1715860239973,-500.0,0.00011067,2]
[327152980,1715860239983,-500.0,0.00011067,2]
[327152981,1715860239994,-539.49490485,0.00011067,2]
[327152982,1715860240005,-510.9287127,0.00011067,2]
[327152983,1715860240016,-500.0,0.00011067,2]
[327152984,1715860240027,-501.23751725,0.00011067,2]
[327152985,1715860240039,-500.0,0.00011067,2]
[327152986,1715860240049,-514.97575938,0.00011067,2]
[327152987,1715860240060,-518.81507929,0.00011067,2]
[327152988,1715860240071,-500.0,0.00011067,2]
[327152989,1715860240082,-500.0,0.00011067,2]
[327152990,1715860240093,-500.0,0.00011067,2]
[327152991,1715860240104,-500.0,0.00011067,2]
[327152992,1715860240115,-305.9015295,0.00011067,2]
[327152993,1715860240125,-500.0,0.00011067,2]
[327152994,1715860240137,-500.0,0.00011067,2]
[327152995,1715860240147,-500.0,0.00011067,2]
[327152996,1715860240158,-500.0,0.00011067,2]
[327152997,1715860240169,-500.0,0.00011067,2]
[327152998,1715860240180,-218.12454037,0.00011067,2]
[327152999,1715860240191,-500.0,0.00011067,2]
[327153000,1715860240202,-500.0,0.00011067,2]
[327153001,1715860240212,-536.58,0.00011067,2]
[327153002,1715860240223,-519.38974842,0.00011067,2]
[327153003,1715860240234,-500.0,0.00011067,2]
[327153004,1715860240246,-500.0,0.00011067,2]
[327153005,1715860240257,-500.0,0.00011067,2]
[327153006,1715860240268,-500.0,0.00011067,2]
[327153007,1715860240279,-500.0,0.00011067,2]
[327153008,1715860240290,-500.0,0.00011067,2]
[327153009,1715860240301,-348.98860191,0.00011067,2]
[327153010,1715860240312,-513.73767505,0.00011067,2]
[327153011,1715860240323,-500.0,0.00011067,2]
[327153012,1715860240333,-552.34240555,0.00011067,2]
[327153013,1715860240344,-500.0,0.00011067,2]
[327153014,1715860240355,-500.0,0.00011067,2]
[327153015,1715860240365,-511.78334467,0.00011067,2]
[327153016,1715860240376,-500.0,0.00011067,2]
[327153018,1715860240389,-500.0,0.00011067,2]
[327153019,1715860240400,-500.0,0.00011067,2]
[327153020,1715860240411,-500.0,0.00011067,2]
[327153021,1715860240423,-500.0,0.00011067,2]
[327153022,1715860240434,-500.0,0.00011067,2]
[327153023,1715860240444,-222.09,0.00011067,2]
[327153026,1715860240455,-500.0,0.00011067,2]
[327153028,1715860240467,-500.0,0.00011067,2]
[327153030,1715860240477,-500.0,0.00011067,2]
[327153031,1715860240489,-500.0,0.00011067,2]
[327153032,1715860240502,-354.0,0.00011067,2]
[327153033,1715860240513,-429.98,0.00011067,2]
[327153034,1715860240524,-500.0,0.00011067,2]
[327153035,1715860240535,-500.0,0.00011067,2]
[327153036,1715860240546,-500.0,0.00011067,2]
[327153037,1715860240557,-500.0,0.00011067,2]
[327153038,1715860240568,-500.0,0.00011067,2]
[327153039,1715860240580,-500.0,0.00011067,2]
[327153040,1715860240591,-324.37,0.00011067,2]
[327153041,1715860240603,-3000.0,0.00011067,2]
[327153042,1715860240614,-2000.0,0.00011067,2]
[327153043,1715860240625,-500.0,0.00011067,2]
[327153044,1715860240637,-500.0,0.00011067,2]
[327153045,1715860240648,-500.0,0.00011067,2]
[327153046,1715860240659,-504.91926652,0.00011067,2]
[327153047,1715860240670,-500.0,0.00011067,2]
[327153048,1715860240681,-504.63428149,0.00011067,2]
[327153049,1715860240692,-490.31,0.00011067,2]
[327153050,1715860240702,-500.0,0.00011067,2]
[327153051,1715860240713,-500.0,0.00011067,2]
[327153052,1715860240723,-500.0,0.00011067,2]
[327153053,1715860240734,-500.0,0.00011067,2]
[327153054,1715860240747,-500.0,0.00011067,2]
[327153055,1715860240758,-500.0,0.00011067,2]
[327153056,1715860240768,-500.0,0.00011067,2]
[327153057,1715860240779,-500.0,0.00011067,2]
[327153058,1715860240790,-500.0,0.00011067,2]
[327153059,1715860240800,-487.41423658,0.00011067,2]
[327153060,1715860240811,-500.0,0.00011067,2]
[327153061,1715860240821,-515.53855746,0.00011067,2]
[327153062,1715860240832,-500.0,0.00011067,2]
[327153063,1715860240843,-500.0,0.00011067,2]
[327153064,1715860240856,-500.0,0.00011067,2]
[327153065,1715860240866,-500.0,0.00011067,2]
[327153066,1715860240877,-500.0,0.00011067,2]
[327153067,1715860240888,-500.0,0.00011067,2]
[327153068,1715860240898,-500.0,0.00011067,2]
[327153069,1715860240909,-500.0,0.00011067,2]
[327153070,1715860240919,-500.0,0.00011067,2]
[327153071,1715860240930,-500.0,0.00011067,2]
[327153072,1715860240940,-500.0,0.00011067,2]
[327153073,1715860240951,-207.16027963,0.00011067,2]
[327153074,1715860240961,-500.0,0.00011067,2]
[327153075,1715860240972,-500.0,0.00011067,2]
[327153076,1715860240982,-186.01539031,0.00011067,2]
[327153077,1715860240992,-500.0,0.00011067,2]
[327153078,1715860241003,-500.0,0.00011067,2]
[327153079,1715860241013,-500.0,0.00011067,2]
[327153080,1715860241024,-246.34304509,0.00011067,2]
[327153081,1715860241034,-500.0,0.00011067,2]
[327153082,1715860241045,-278.12002326,0.00011067,2]
[327153083,1715860241055,-500.0,0.00011067,2]
[327153084,1715860241340,-500.0,0.00011067,2]
[327153085,1715860241358,-500.0,0.00011067,2]
[327153086,1715860241368,-500.0,0.00011067,2]
[327153087,1715860241380,-500.0,0.00011067,2]
[327153088,1715860241392,-500.0,0.00011067,2]
[327153089,1715860241402,-500.0,0.00011067,2]
[327153090,1715860241414,-500.0,0.00011067,2]
[327153091,1715860241423,-500.0,0.00011067,2]
[327153092,1715860241434,-425.82959515,0.00011067,2]
[327153093,1715860241444,-500.0,0.00011067,2]
[327153094,1715860241453,-500.0,0.00011067,2]
[327153095,1715860241463,-500.0,0.00011067,2]
[327153096,1715860241474,-500.0,0.00011067,2]
[327153097,1715860241485,-500.0,0.00011067,2]
[327153098,1715860241496,-207.65391609,0.00011067,2]
[327153099,1715860241505,-194.13477505,0.00011067,2]
[327153100,1715860241515,-189.46,0.00011067,2]
[327153101,1715860241524,-500.0,0.00011067,2]
[327153102,1715860241533,-237.89,0.00011067,2]
[327153103,1715860241542,-500.0,0.00011067,2]
[327153104,1715860241551,-500.0,0.00011067,2]
[327153105,1715860241561,-500.0,0.00011067,2]
[327153106,1715860241570,-500.0,0.00011067,2]
[327153107,1715860241579,-500.0,0.00011067,2]
[327153108,1715860241588,-500.0,0.00011067,2]
[327153109,1715860241598,-292.57071612,0.00011067,2]
[327153110,1715860241607,-500.0,0.00011067,2]
[327153111,1715860241616,-500.0,0.00011067,2]
[327153112,1715860241625,-500.0,0.00011067,2]
[327153113,1715860241635,-168.52588462,0.00011067,2]
[327153114,1715860241644,-500.0,0.00011067,2]
[327153115,1715860241653,-500.0,0.00011067,2]
[327153116,1715860241662,-500.0,0.00011067,2]
[327153117,1715860241671,-500.0,0.00011067,2]
[327153118,1715860241680,-500.0,0.00011067,2]
[327153119,1715860241689,-500.0,0.00011067,2]
[327153120,1715860241698,-427.85,0.00011067,2]
[327153121,1715860241707,-255.15121678,0.00011067,2]
[327153122,1715860241717,-500.0,0.00011067,2]
[327153123,1715860241726,-500.0,0.00011067,2]
[327153124,1715860241736,-500.0,0.00011067,2]
[327153125,1715860241746,-500.0,0.00011067,2]
[327153126,1715860241755,-500.0,0.00011067,2]
[327153127,1715860241765,-500.0,0.00011067,2]
[327153128,1715860241774,-500.0,0.00011067,2]
[327153129,1715860241784,-500.0,0.00011067,2]
[327153130,1715860241794,-500.0,0.00011067,2]
[327153131,1715860241803,-500.0,0.00011067,2]
[327153132,1715860241813,-500.0,0.00011067,2]
[327153133,1715860241822,-500.0,0.00011067,2]
[327153134,1715860241832,-407.13,0.00011067,2]
[327153135,1715860241841,-500.0,0.00011067,2]
[327153136,1715860241851,-500.0,0.00011067,2]
[327153137,1715860241861,-500.0,0.00011067,2]
[327153138,1715860241870,-500.0,0.00011067,2]
[327153139,1715860241879,-500.0,0.00011067,2]
[327153140,1715860241889,-500.0,0.00011067,2]
[327153141,1715860241899,-500.0,0.00011067,2]
[327153142,1715860241908,-500.0,0.00011067,2]
[327153143,1715860241917,-500.0,0.00011067,2]
[327153144,1715860241926,-500.0,0.00011067,2]
[327153145,1715860241936,-500.0,0.00011067,2]
[327153146,1715860241945,-500.0,0.00011067,2]
[327153147,1715860241956,-500.0,0.00011067,2]
[327153148,1715860241965,-500.0,0.00011067,2]
[327153149,1715860241974,-500.0,0.00011067,2]
[327153150,1715860241984,-500.0,0.00011067,2]
[327153151,1715860241994,-500.0,0.00011067,2]
[327153152,1715860242003,-617.92,0.00011067,2]
[327153153,1715860242012,-617.92,0.00011067,2]
[327153154,1715860242022,-617.92,0.00011067,2]
[327153155,1715860242031,-617.92,0.00011067,2]
[327153156,1715860242040,-617.92,0.00011067,2]
[327153157,1715860242050,-1800.95,0.00011067,2]
[327153158,1715860242059,-1800.95,0.00011067,2]
[327153159,1715860242068,-1800.95,0.00011067,2]
[327153160,1715860242078,-1800.95,0.00011067,2]
[327153161,1715860242087,-1800.95,0.00011067,2]
[327153162,1715860242097,-500.0,0.00011067,2]
[327153163,1715860242106,-500.0,0.00011067,2]
[327153164,1715860242116,-500.0,0.00011067,2]
[327153165,1715860242125,-500.0,0.00011067,2]
[327153166,1715860242135,-500.0,0.00011067,2]
[327153167,1715860242144,-500.0,0.00011067,2]
[327153168,1715860242154,-500.0,0.00011067,2]
[327153169,1715860242164,-500.0,0.00011067,2]
[327153170,1715860242173,-500.0,0.00011067,2]
[327153171,1715860242183,-500.0,0.00011067,2]
[327153172,1715860242192,-500.0,0.00011067,2]
[327153173,1715860242202,-500.0,0.00011067,2]
[327153174,1715860242211,-500.0,0.00011067,2]
[327153175,1715860242220,-500.0,0.00011067,2]
[327153176,1715860242229,-500.0,0.00011067,2]
[327153177,1715860242238,-500.0,0.00011067,2]
[327153178,1715860242248,-500.0,0.00011067,2]
[327153179,1715860242258,-500.0,0.00011067,2]
[327153180,1715860242267,-286.92753366,0.00011067,2]